lending/lending_fUSD_20240603
["ID","MTS","AMOUNT","RATE_DAILY","PERIOD"]
[328441195,1717389066806,-12791.31,0.0003178,4]
[328441196,1717389066816,-733.27,0.0003178,4]
[328441197,1717389066826,-500.0,0.0003178,4]
[328441198,1717389066835,-768.52,0.0003178,4]
[328441199,1717389066845,-500.0,0.0003178,4]
[328441200,1717389066855,-500.0,0.0003178,4]
[328441201,1717389066864,-500.0,0.0003178,4]
[328441202,1717389066873,-2915.06,0.00031785,4]
[328441203,1717389066883,-982.37,0.00031785,4]
[328441204,1717389066891,-1544.48,0.00031785,4]
[328441205,1717389066901,-644.6,0.00031785,4]
[328441206,1717389066911,-547.39,0.00031785,4]
[328441207,1717389066920,-500.0,0.00031785,4]
[328441208,1717389066929,-1062.74,0.00031785,4]
[328441209,1717389066938,-1179.69,0.00031785,4]
[328441210,1717389066947,-785.78,0.00031785,4]
[328441211,1717389066957,-500.0,0.00031785,4]
[328441212,1717389066966,-1221.0,0.00031785,4]
[328441213,1717389066975,-748.54,0.00031785,4]
[328441214,1717389066984,-500.0,0.00031785,4]
[328441215,1717389066994,-801.18,0.00031785,4]
[328441216,1717389067004,-576.19,0.00031785,4]
[328441217,1717389067013,-525.18,0.00031785,4]
[328441218,1717389067022,-1096.48,0.00031785,4]
[328441219,1717389067031,-1379.61,0.00031785,4]
[328441220,1717389067040,-735.02,0.00031785,4]
[328441221,1717389067050,-500.0,0.00031785,4]
[328441222,1717389067060,-500.56391417,0.00031785,4]
[328441223,1717389067070,-500.0,0.00031786,4]
[328441224,1717389067080,-500.0,0.00031786,4]
[328441225,1717389067089,-500.0,0.00031786,4]
[328441226,1717389067099,-500.0,0.00031786,4]
[328441227,1717389067108,-500.0,0.00031786,4]
[328441228,1717389067117,-500.0,0.00031786,4]
[328441229,1717389067126,-500.0,0.00031786,4]
[328441230,1717389067136,-500.0,0.00031786,4]
[328441231,1717389067145,-541.29,0.00031786,4]
[328441232,1717389067154,-500.0,0.00031786,4]
[328441233,1717389067164,-500.0,0.00031786,4]
[328441234,1717389067173,-812.33,0.00031786,4]
[328441235,1717389067182,-528.35212233,0.00031786,4]
[328441236,1717389067192,-500.0,0.00031786,4]
[328441237,1717389067201,-150.81196078,0.00031788,7]
[328441238,1717389067210,-154.58625031,0.00031808,2]
[328441239,1717389067219,-150.0,0.00031848,2]
[328441240,1717389067229,-500.0,0.0003185,3]
[328441241,1717389067239,-156.63232353,0.00031857,7]
[328441242,1717389067247,-500.0,0.00031859,3]
[328441243,1717389067257,-500.0,0.00031868,3]
[328441244,1717389067266,-151.44378866,0.00031873,2]
[328441245,1717389067275,-500.0,0.00031877,3]
[328441246,1717389067284,-500.0,0.00031886,3]
[328441247,1717389067293,-150.0,0.00031887,7]
[328441248,1717389067303,-500.0,0.00031894,3]
[328441249,1717389067312,-500.0,0.00031894,3]
[328441250,1717389067322,-150.0,0.000319,7]
[328441251,1717389067331,-500.0,0.00031903,3]
[328441252,1717389067341,-500.0,0.00031903,3]
[328441253,1717389067352,-150.0,0.00031904,2]
[328441254,1717389067361,-500.0,0.00031912,3]
[328441255,1717389067370,-500.0,0.00031912,3]
[328441256,1717389067379,-500.0,0.00031921,3]
[328441257,1717389067388,-500.0,0.00031921,3]
[328441258,1717389067397,-500.0,0.0003193,3]
[328441259,1717389067406,-500.0,0.0003193,3]
[328441260,1717389067415,-150.0,0.0003193,7]
[328441261,1717389067424,-150.0,0.0003193,7]
[328441262,1717389067433,-500.0,0.00031938,3]
[328441263,1717389067447,-500.0,0.00031938,3]
[328441264,1717389067456,-500.0,0.00031947,3]
[328441265,1717389067466,-500.0,0.00031947,3]
[328441266,1717389067475,-500.0,0.00031956,3]
[328441267,1717389067486,-500.0,0.00031956,3]
[328441268,1717389067496,-500.0,0.00031965,3]
[328441269,1717389067505,-500.0,0.00031965,3]
[328441270,1717389067514,-150.0,0.00031968,2]
[328441271,1717389067526,-500.0,0.00031974,3]
[328441272,1717389067535,-500.0,0.00031974,3]
[328441273,1717389067545,-150.0,0.0003198,3]
[328441274,1717389067554,-155.04569471,0.00031981,7]
[328441275,1717389067564,-500.0,0.00031982,3]
[328441276,1717389067573,-500.0,0.00031982,3]
[328441277,1717389067583,-150.81196078,0.00031985,7]
[328441278,1717389067592,-500.0,0.00031991,3]
[328441279,1717389067603,-16000.0,0.00031991,3]
[328441280,1717389067612,-500.0,0.00031991,3]
[328441281,1717389067620,-160.0,0.00031991,2]
[328441282,1717389067629,-959.988509,0.00032,4]
[328441283,1717389067638,-500.0,0.00032,3]
[328441284,1717389067648,-16000.0,0.00032,3]
[328441285,1717389067657,-500.0,0.00032,3]
[328441286,1717389067666,-874.43,0.00032,2]
[328441287,1717389067675,-1055.91,0.00032,2]
[328441288,1717389067685,-160.0,0.00032,2]
[328441289,1717389067694,-410.212183,0.00032,8]
[328441290,1717389067703,-150.0,0.00032037,7]
[328441291,1717389067712,-500.0,0.00032054,4]
[328441292,1717389067722,-4104.15,0.00032054,4]
[328441293,1717389067731,-1535.91,0.00032054,4]
[328441294,1717389067740,-910.08,0.00032054,4]
[328441295,1717389067750,-155.58447713,0.00032054,7]
[328441296,1717389067761,-1151.42,0.00032054,4]
[328441297,1717389067770,-1173.66,0.00032054,4]
[328441298,1717389067779,-696.56,0.00032054,4]
[328441299,1717389067788,-5921.43,0.00032054,4]
[328441300,1717389067799,-539.44,0.00032054,4]
[328441301,1717389067810,-848.91,0.00032054,4]
[328441302,1717389067820,-1286.49,0.00032054,4]
[328441303,1717389067830,-500.0,0.00032054,4]
[328441304,1717389067840,-632.25,0.00032054,4]
[328441305,1717389067851,-559.62,0.00032054,4]
[328441306,1717389067860,-565.7,0.00032054,4]
[328441307,1717389067870,-2118.74,0.00032054,4]
[328441308,1717389067880,-651.84,0.00032054,4]
[328441309,1717389067889,-909.21,0.00032054,4]
[328441310,1717389067899,-537.35,0.00032054,4]
[328441311,1717389067909,-500.0,0.00032054,4]
[328441312,1717389067918,-982.23,0.00032054,4]
[328441313,1717389067928,-4493.09,0.00032054,4]
[328441314,1717389067937,-500.0,0.00032054,4]
[328441315,1717389067947,-719.21,0.00032054,4]
[328441316,1717389067957,-793.36,0.00032054,4]
[328441317,1717389067967,-633.56,0.00032054,4]
[328441318,1717389067976,-500.0,0.00032054,4]
[328441319,1717389067986,-1664.07,0.00032054,4]
[328441320,1717389067996,-576.29,0.00032054,4]
[328441321,1717389068005,-500.0,0.00032054,4]
[328441322,1717389068014,-732.02,0.00032054,4]
[328441323,1717389068024,-583.29,0.00032054,4]
[328441324,1717389068033,-1096.54,0.00032054,4]
[328441325,1717389068043,-574.86,0.00032054,4]
[328441326,1717389068052,-1037.87,0.00032054,4]
[328441327,1717389068061,-1896.28,0.00032054,4]
[328441328,1717389068072,-848.97,0.00032054,4]
[328441329,1717389068083,-994.65,0.00032054,4]
[328441330,1717389068092,-696.39,0.00032054,4]
[328441331,1717389068103,-500.0,0.00032054,4]
[328441332,1717389068113,-1445.97,0.00032054,4]
[328441333,1717389068123,-855.5,0.00032054,4]
[328441334,1717389068132,-500.0,0.00032054,4]
[328441335,1717389068142,-509.19,0.00032054,4]
[328441336,1717389068154,-822.77,0.00032054,4]
[328441337,1717389068163,-500.0,0.00032054,4]
[328441338,1717389068173,-815.25,0.00032054,4]
[328441339,1717389068183,-559.21,0.00032054,4]
[328441340,1717389068193,-1934.31,0.00032054,4]
[328441341,1717389068202,-1176.86,0.00032054,4]
[328441342,1717389068212,-2118.35,0.00032054,4]
[328441343,1717389068222,-759.25,0.00032054,4]
[328441344,1717389068232,-912.58,0.00032054,4]
[328441345,1717389068242,-500.0,0.00032054,4]
[328441346,1717389068252,-1405.62,0.00032054,4]
[328441347,1717389068262,-500.0,0.00032054,4]
[328441348,1717389068271,-1421.66,0.00032054,4]
[328441349,1717389068281,-500.0,0.00032054,4]
[328441350,1717389068291,-566.0,0.00032054,4]
[328441351,1717389068300,-3946.44,0.00032054,4]
[328441352,1717389068310,-530.15,0.00032054,4]
[328441353,1717389068320,-1447.14,0.00032054,4]
[328441354,1717389068329,-818.94,0.00032054,4]
[328441355,1717389068340,-12791.31,0.00032054,4]
[328441356,1717389068351,-733.27,0.00032054,4]
[328441357,1717389068360,-246.75593847,0.00032054,4]
[328441358,1717389068370,-768.52,0.00032054,4]
[328441359,1717389068380,-500.0,0.00032054,4]
[328441360,1717389068390,-500.0,0.00032054,4]
[328441361,1717389068399,-500.0,0.00032054,4]
[328441362,1717389068409,-2915.06,0.00032059,4]
[328441363,1717389068418,-982.37,0.00032059,4]
[328441364,1717389068429,-156.63232353,0.00032059,7]
[328441365,1717389068439,-1544.48,0.00032059,4]
[328441366,1717389068454,-644.6,0.00032059,4]
[328441367,1717389068467,-547.39,0.00032059,4]
[328441368,1717389068477,-500.0,0.00032059,4]
[328441369,1717389068487,-1062.74,0.00032059,4]
[328441370,1717389068496,-1179.69,0.00032059,4]
[328441371,1717389068505,-785.78,0.00032059,4]
[328441372,1717389068515,-500.0,0.00032059,4]
[328441373,1717389068527,-1221.0,0.00032059,4]
[328441374,1717389068538,-748.54,0.00032059,4]
[328441375,1717389068548,-500.0,0.00032059,4]
[328441376,1717389068558,-801.18,0.00032059,4]
[328441377,1717389068568,-576.19,0.00032059,4]
[328441378,1717389068577,-525.18,0.00032059,4]
[328441379,1717389068587,-1096.48,0.00032059,4]
[328441380,1717389068598,-1379.61,0.00032059,4]
[328441381,1717389068607,-735.02,0.00032059,4]
[328441382,1717389068617,-500.0,0.00032059,4]
[328441383,1717389068626,-500.0,0.0003206,4]
[328441384,1717389068636,-500.0,0.0003206,4]
[328441385,1717389068645,-500.0,0.0003206,4]
[328441386,1717389068655,-500.0,0.0003206,4]
[328441387,1717389068664,-500.0,0.0003206,4]
[328441388,1717389068673,-500.0,0.0003206,4]
[328441389,1717389068684,-500.0,0.0003206,4]
[328441390,1717389068694,-500.0,0.0003206,4]
[328441391,1717389068703,-541.29,0.0003206,4]
[328441392,1717389068713,-500.0,0.0003206,4]
[328441393,1717389068722,-500.0,0.0003206,4]
[328441394,1717389068731,-812.33,0.0003206,4]
[328441395,1717389068741,-500.0,0.0003206,4]
[328441396,1717389068751,-157.62194438,0.00032085,7]
[328441397,1717389068760,-150.81196078,0.00032085,7]
[328441398,1717389068770,-156.13077755,0.0003209,7]
[328441399,1717389068780,-150.0,0.00032104,7]
[328441400,1717389068789,-150.0,0.00032104,7]
[328441401,1717389068799,-150.81196078,0.00032122,7]
[328441402,1717389068808,-13860.93441176,0.00032127,3]
[328441403,1717389068818,-157.62194438,0.00032155,7]
[328441404,1717389068828,-157.14383777,0.00032181,7]
[328441405,1717389068838,-157.14383777,0.00032188,7]
[328441406,1717389068848,-157.62194438,0.00032201,7]
[328441407,1717389068858,-150.81196078,0.00032208,7]
[328441408,1717389068867,-150.81196078,0.00032211,7]
[328441409,1717389068879,-151.0,0.00032217,7]
[328441410,1717389068890,-152.48854641,0.00032221,7]
[328441411,1717389068901,-150.0,0.00032231,2]
[328441412,1717389068911,-2500.0,0.00032242,2]
[328441413,1717389068921,-156.25433417,0.00032269,7]
[328441414,1717389068931,-150.0,0.00032278,7]
[328441415,1717389068941,-150.0,0.00032294,2]
[328441416,1717389068950,-150.0,0.00032304,7]
[328441417,1717389068960,-492.0,0.00032306,3]
[328441418,1717389068969,-157.14383777,0.00032319,7]
[328441419,1717389068978,-150.0,0.00032321,7]
[328441420,1717389068988,-500.0,0.00032328,4]
[328441421,1717389068997,-4104.15,0.00032328,4]
[328441422,1717389069007,-1535.91,0.00032328,4]
[328441423,1717389069016,-910.08,0.00032328,4]
[328441424,1717389069026,-1151.42,0.00032328,4]
[328441425,1717389069035,-1173.66,0.00032328,4]
[328441426,1717389069045,-696.56,0.00032328,4]
[328441427,1717389069055,-5921.43,0.00032328,4]
[328441428,1717389069064,-539.44,0.00032328,4]
[328441429,1717389069074,-848.91,0.00032328,4]
[328441430,1717389069083,-1286.49,0.00032328,4]
[328441431,1717389069093,-500.0,0.00032328,4]
[328441432,1717389069104,-559.62,0.00032328,4]
[328441433,1717389069114,-632.25,0.00032328,4]
[328441434,1717389069124,-565.7,0.00032328,4]
[328441435,1717389069133,-2118.74,0.00032328,4]
[328441436,1717389069143,-909.21,0.00032328,4]
[328441437,1717389069153,-651.84,0.00032328,4]
[328441438,1717389069163,-537.35,0.00032328,4]
[328441439,1717389069173,-500.0,0.00032328,4]
[328441440,1717389069183,-982.23,0.00032328,4]
[328441441,1717389069192,-4493.09,0.00032328,4]
[328441442,1717389069202,-500.0,0.00032328,4]
[328441443,1717389069212,-719.21,0.00032328,4]
[328441444,1717389069222,-793.36,0.00032328,4]
[328441445,1717389069232,-500.0,0.00032328,4]
[328441446,1717389069242,-633.56,0.00032328,4]
[328441447,1717389069252,-1664.07,0.00032328,4]
[328441448,1717389069262,-576.29,0.00032328,4]
[328441449,1717389069272,-423.72947802,0.00032328,4]
[328441450,1717389069281,-732.02,0.00032328,4]
[328441451,1717389069291,-583.29,0.00032328,4]
[328441452,1717389069301,-1096.54,0.00032328,4]
[328441453,1717389069311,-574.86,0.00032328,4]
[328441454,1717389069320,-1037.87,0.00032328,4]
[328441455,1717389069330,-1896.28,0.00032328,4]
[328441456,1717389069340,-848.97,0.00032328,4]
[328441457,1717389069351,-994.65,0.00032328,4]
[328441458,1717389069360,-696.39,0.00032328,4]
[328441459,1717389069370,-500.0,0.00032328,4]
[328441460,1717389069380,-1445.97,0.00032328,4]
[328441461,1717389069390,-855.5,0.00032328,4]
[328441462,1717389069400,-500.0,0.00032328,4]
[328441463,1717389069409,-509.19,0.00032328,4]
[328441464,1717389069419,-822.77,0.00032328,4]
[328441465,1717389069429,-282.33419436,0.00032328,4]
[328441466,1717389069439,-815.25,0.00032328,4]
[328441467,1717389069453,-559.21,0.00032328,4]
[328441468,1717389069463,-1934.31,0.00032328,4]
[328441469,1717389069473,-1176.86,0.00032328,4]
[328441470,1717389069484,-2118.35,0.00032328,4]
[328441471,1717389069494,-759.25,0.00032328,4]
[328441472,1717389069504,-912.58,0.00032328,4]
[328441473,1717389069514,-500.0,0.00032328,4]
[328441474,1717389069524,-1405.62,0.00032328,4]
[328441475,1717389069533,-500.0,0.00032328,4]
[328441476,1717389069543,-1421.66,0.00032328,4]
[328441477,1717389069553,-500.0,0.00032328,4]
[328441478,1717389069563,-566.0,0.00032328,4]
[328441479,1717389069573,-3946.44,0.00032328,4]
[328441480,1717389069584,-530.15,0.00032328,4]
[328441481,1717389069594,-1447.14,0.00032328,4]
[328441482,1717389069605,-818.94,0.00032328,4]
[328441483,1717389069615,-12791.31,0.00032328,4]
[328441484,1717389069626,-733.27,0.00032328,4]
[328441485,1717389069636,-768.52,0.00032328,4]
[328441486,1717389069646,-500.0,0.00032328,4]
[328441487,1717389069655,-156.71175578,0.00032328,4]
[328441488,1717389069665,-500.0,0.00032328,4]
[328441489,1717389069675,-223.721536,0.00032329,14]
[328441490,1717389069684,-500.0,0.0003233,2]
[328441491,1717389069694,-200.0,0.0003233,2]
[328441492,1717389069704,-500.0,0.00032331,2]
[328441493,1717389069714,-200.0,0.00032331,2]
[328441494,1717389069723,-2915.06,0.00032333,4]
[328441495,1717389069733,-982.37,0.00032333,4]
[328441496,1717389069743,-1544.48,0.00032333,4]
[328441497,1717389069753,-644.6,0.00032333,4]
[328441498,1717389069763,-547.39,0.00032333,4]
[328441499,1717389069772,-500.0,0.00032333,4]
[328441500,1717389069783,-1062.74,0.00032333,4]
[328441501,1717389069793,-1179.69,0.00032333,4]
[328441502,1717389069802,-785.78,0.00032333,4]
[328441503,1717389069812,-500.0,0.00032333,4]
[328441504,1717389069821,-1221.0,0.00032333,4]
[328441505,1717389069831,-748.54,0.00032333,4]
[328441506,1717389069840,-500.0,0.00032333,4]
[328441507,1717389069851,-801.18,0.00032333,4]
[328441508,1717389069862,-576.19,0.00032333,4]
[328441509,1717389069872,-525.18,0.00032333,4]
[328441510,1717389069883,-1096.48,0.00032333,4]
[328441511,1717389069894,-1379.61,0.00032333,4]
[328441512,1717389069904,-735.02,0.00032333,4]
[328441513,1717389069914,-500.0,0.00032333,4]
[328441514,1717389069924,-500.0,0.00032334,4]
[328441515,1717389069934,-500.0,0.00032334,4]
[328441516,1717389069944,-500.0,0.00032334,4]
[328441517,1717389069954,-500.0,0.00032334,4]
[328441518,1717389069964,-500.0,0.00032334,4]
[328441519,1717389069974,-500.0,0.00032334,4]
[328441520,1717389069984,-500.0,0.00032334,4]
[328441521,1717389069994,-500.0,0.00032334,4]
[328441522,1717389070003,-541.29,0.00032334,4]
[328441523,1717389070013,-500.0,0.00032334,4]
[328441524,1717389070023,-500.0,0.00032334,4]
[328441525,1717389070033,-812.33,0.00032334,4]
[328441526,1717389070043,-500.0,0.00032334,4]
[328441527,1717389070204,-152.48854641,0.00032343,7]
[328441528,1717389070215,-150.81196078,0.00032384,7]
[328441529,1717389070225,-150.0,0.000324,7]
[328441530,1717389070235,-150.81196078,0.00032416,7]
[328441531,1717389070245,-2500.0,0.0003244,2]
[328441532,1717389070255,-150.0,0.00032449,2]
[328441533,1717389070264,-155.04569471,0.00032458,7]
[328441534,1717389070274,-1375.0,0.00032463,7]
[328441535,1717389070284,-525.57,0.00032466,2]
[328441536,1717389070294,-525.57,0.00032466,2]
[328441537,1717389070303,-525.57,0.00032466,2]
[328441538,1717389070313,-150.81196078,0.00032467,7]
[328441539,1717389070323,-150.0,0.00032499,2]
[328441540,1717389070332,-155.58447713,0.00032511,7]
[328441541,1717389070342,-282.74,0.00032512,6]
[328441542,1717389070353,-150.0,0.00032538,7]
[328441543,1717389070363,-155.04569471,0.00032566,7]
[328441544,1717389070372,-150.0,0.00032571,7]
[328441545,1717389070382,-152.21300883,0.00032596,4]
[328441546,1717389070392,-533.972285,0.00032599,2]
[328441547,1717389070401,-160.0,0.000326,5]
[328441548,1717389070411,-150.0,0.000326,5]
[328441549,1717389070420,-8730.4109444,0.00032602,2]
[328441550,1717389070430,-1281.7353719,0.00032602,2]
[328441551,1717389070440,-500.0,0.00032602,2]
[328441552,1717389070453,-500.0,0.00032602,2]
[328441553,1717389070462,-500.0,0.00032602,2]
[328441554,1717389070472,-500.0,0.00032602,2]
[328441555,1717389070481,-500.0,0.00032602,2]
[328441556,1717389070491,-500.0,0.00032602,2]
[328441557,1717389070500,-500.0,0.00032602,2]
[328441558,1717389070510,-500.0,0.00032602,2]
[328441559,1717389070520,-500.0,0.00032602,2]
[328441560,1717389070532,-500.0,0.00032602,2]
[328441561,1717389070546,-500.0,0.00032602,2]
[328441562,1717389070555,-500.0,0.00032602,2]
[328441563,1717389070564,-500.0,0.00032602,2]
[328441564,1717389070573,-500.0,0.00032602,2]
[328441565,1717389070583,-500.0,0.00032602,2]
[328441566,1717389070592,-500.0,0.00032602,2]
[328441567,1717389070603,-500.0,0.00032602,2]
[328441568,1717389070612,-500.0,0.00032602,2]
[328441569,1717389070621,-500.0,0.00032602,2]
[328441570,1717389070630,-596.44383677,0.00032602,2]
[328441571,1717389070639,-500.0,0.00032602,4]
[328441572,1717389070649,-4104.15,0.00032602,4]
[328441573,1717389070659,-1535.91,0.00032602,4]
[328441574,1717389070669,-910.08,0.00032602,4]
[328441575,1717389070678,-1151.42,0.00032602,4]
[328441576,1717389070688,-1173.66,0.00032602,4]
[328441577,1717389070697,-696.56,0.00032602,4]
[328441578,1717389070706,-5921.43,0.00032602,4]
[328441579,1717389070715,-539.44,0.00032602,4]
[328441580,1717389070725,-848.91,0.00032602,4]
[328441581,1717389070734,-1286.49,0.00032602,4]
[328441582,1717389070744,-500.0,0.00032602,4]
[328441583,1717389070753,-632.25,0.00032602,4]
[328441584,1717389070762,-559.62,0.00032602,4]
[328441585,1717389070772,-565.7,0.00032602,4]
[328441586,1717389070783,-2118.74,0.00032602,4]
[328441587,1717389070794,-909.21,0.00032602,4]
[328441588,1717389070804,-651.84,0.00032602,4]
[328441589,1717389070815,-537.35,0.00032602,4]
[328441590,1717389070824,-500.0,0.00032602,4]
[328441591,1717389070834,-982.23,0.00032602,4]
[328441592,1717389070845,-4493.09,0.00032602,4]
[328441593,1717389070855,-500.0,0.00032602,4]
[328441594,1717389070864,-719.21,0.00032602,4]
[328441595,1717389070874,-793.36,0.00032602,4]
[328441596,1717389070883,-500.0,0.00032602,4]
[328441597,1717389070892,-633.56,0.00032602,4]
[328441598,1717389070902,-1664.07,0.00032602,4]
[328441599,1717389070912,-576.29,0.00032602,4]
[328441600,1717389070921,-732.02,0.00032602,4]
[328441601,1717389070931,-583.29,0.00032602,4]
[328441602,1717389070941,-1096.54,0.00032602,4]
[328441603,1717389070950,-574.86,0.00032602,4]
[328441604,1717389070959,-1037.87,0.00032602,4]
[328441605,1717389070968,-1896.28,0.00032602,4]
[328441606,1717389070978,-848.97,0.00032602,4]
[328441607,1717389070987,-994.65,0.00032602,4]
[328441608,1717389070997,-696.39,0.00032602,4]
[328441609,1717389071006,-500.0,0.00032602,4]
[328441610,1717389071016,-1445.97,0.00032602,4]
[328441611,1717389071026,-855.5,0.00032602,4]
[328441612,1717389071035,-500.0,0.00032602,4]
[328441613,1717389071044,-509.19,0.00032602,4]
[328441614,1717389071054,-822.77,0.00032602,4]
[328441615,1717389071064,-815.25,0.00032602,4]
[328441616,1717389071073,-559.21,0.00032602,4]
[328441617,1717389071083,-1934.31,0.00032602,4]
[328441618,1717389071093,-1176.86,0.00032602,4]
[328441619,1717389071103,-2118.35,0.00032602,4]
[328441620,1717389071114,-759.25,0.00032602,4]
[328441621,1717389071124,-912.58,0.00032602,4]
[328441622,1717389071133,-500.0,0.00032602,4]
[328441623,1717389071142,-1405.62,0.00032602,4]
[328441624,1717389071151,-478.83579578,0.00032602,4]
[328441625,1717389071161,-1421.66,0.00032602,4]
[328441626,1717389071171,-500.0,0.00032602,4]
[328441627,1717389071179,-566.0,0.00032602,4]
[328441628,1717389071189,-3946.44,0.00032602,4]
[328441629,1717389071199,-530.15,0.00032602,4]
[328441630,1717389071209,-1447.14,0.00032602,4]
[328441631,1717389071217,-12791.31,0.00032602,4]
[328441632,1717389071227,-818.94,0.00032602,4]
[328441633,1717389071236,-733.27,0.00032602,4]
[328441634,1717389071246,-768.52,0.00032602,4]
[328441635,1717389071255,-611.61426385,0.00032602,4]
[328441636,1717389071264,-2915.06,0.00032607,4]
[328441637,1717389071274,-982.37,0.00032607,4]
[328441638,1717389071283,-1544.48,0.00032607,4]
[328441639,1717389071293,-644.6,0.00032607,4]
[328441640,1717389071302,-547.39,0.00032607,4]
[328441641,1717389071311,-500.0,0.00032607,4]
[328441642,1717389071320,-1062.74,0.00032607,4]
[328441643,1717389071329,-1179.69,0.00032607,4]
[328441644,1717389071339,-785.78,0.00032607,4]
[328441645,1717389071349,-500.0,0.00032607,4]
[328441646,1717389071358,-1221.0,0.00032607,4]
[328441647,1717389071367,-748.54,0.00032607,4]
[328441648,1717389071376,-500.0,0.00032607,4]
[328441649,1717389071386,-801.18,0.00032607,4]
[328441650,1717389071395,-576.19,0.00032607,4]
[328441651,1717389071405,-525.18,0.00032607,4]
[328441652,1717389071414,-1096.48,0.00032607,4]
[328441653,1717389071424,-1379.61,0.00032607,4]
[328441654,1717389071434,-735.02,0.00032607,4]
[328441655,1717389071445,-500.0,0.00032607,4]
[328441656,1717389071458,-500.0,0.00032608,4]
[328441657,1717389071467,-500.0,0.00032608,4]
[328441658,1717389071476,-500.0,0.00032608,4]
[328441659,1717389071486,-500.0,0.00032608,4]
[328441660,1717389071496,-500.0,0.00032608,4]
[328441661,1717389071506,-500.0,0.00032608,4]
[328441662,1717389071514,-500.0,0.00032608,4]
[328441663,1717389071524,-500.0,0.00032608,4]
[328441664,1717389071534,-541.29,0.00032608,4]
[328441665,1717389071544,-225.54815958,0.00032608,4]
[328441666,1717389071554,-500.0,0.00032608,4]
[328441667,1717389071563,-812.33,0.00032608,4]
[328441668,1717389071572,-478.39724012,0.00032608,4]
[328441669,1717389071582,-150.81196078,0.00032614,7]
[328441670,1717389071591,-150.0,0.00032625,7]
[328441671,1717389071601,-150.0,0.00032625,7]
[328441672,1717389071611,-13860.93441176,0.00032663,4]
[328441673,1717389071621,-155.04569471,0.00032684,7]
[328441674,1717389071630,-152.48854641,0.00032688,7]
[328441675,1717389071639,-179.4,0.00032722,2]
[328441676,1717389071648,-209.0,0.0003273,2]
[328441677,1717389071658,-150.0,0.0003274,2]
[328441678,1717389071668,-150.0,0.0003274,2]
[328441679,1717389071678,-150.0,0.0003274,2]
[328441680,1717389071687,-150.0,0.0003274,2]
[328441681,1717389071696,-150.0,0.00032755,7]
[328441682,1717389071706,-150.81196078,0.00032771,7]
[328441683,1717389071715,-155.04569471,0.00032774,7]
[328441684,1717389071724,-158.26123952,0.00032795,7]
[328441685,1717389071734,-47270.44711055,0.000328,3]
[328441686,1717389071743,-5004.39,0.00032821,2]
[328441687,1717389071752,-150.0,0.00032838,7]
[328441688,1717389071761,-734.08,0.00032875,2]
[328441689,1717389071770,-340.40724769,0.00032876,4]
[328441690,1717389071780,-522.46342185,0.00032876,30]
[328441691,1717389071789,-4104.15,0.00032876,4]
[328441692,1717389071799,-1535.91,0.00032876,4]
[328441693,1717389071808,-910.08,0.00032876,4]
[328441694,1717389071817,-1151.42,0.00032876,4]